[Event "25th Troya Open 2017"]
[Site "Canakkale"]
[Date "2017.08.11"]
[Round "8.11"]
[White "Yildiz, Serkan"]
[Black "Algunerhan, Siar"]
[Result "0-1"]
[ECO "D32"]
[WhiteElo "1770"]
[BlackElo "1742"]
[Annotator "NA"]
[PlyCount "54"]
[EventCountry "TUR"]
[SourceTitle "playchess.com"]
[Source "ChessBase"]
[SourceQuality "1"]
[TimeControl "5400+30"]

1. c4 {[%emt 0:00:30]} Nf6 {[%emt 0:01:00]} 2. Nc3 {[%emt 0:00:30]} e6 {[%emt 0:00:30]} 3. Nf3 {[%emt 0:00:30]} d5 {[%emt 0:00:30]} 4. e3 {[%emt 0:00:30]} c5 {[%emt 0:01:30]} 5. d4 {[%emt 0:05:30]} Nc6 {[%emt 0:00:30]} 6. cxd5 {[%emt 0:01:30]} exd5 {[%emt 0:01:30]} 7. Bb5 {[%emt 0:03:30]} cxd4 {[%emt 0:09:30]} 8. Nxd4 {[%emt 0:03:30]} Bd7 {[%emt 0:02:30]} 9. O-O {[%emt 0:17:30]} Bd6 {[%emt 0:05:30]} 10. Re1 {[%emt 0:08:30]} O-O {[%emt 0:09:30]} 11. e4 {[%emt 0:03:30]} Ng4 {[%emt 0:09:30]} 12. Nf3 {[%emt 0:04:30]} Bc5 {[%emt 0:08:30]} 13. Re2 {[%emt 0:06:30]} Qb6 {[%emt 0:05:30]} 14. exd5 {[%emt 0:15:30]} Nxf2 {[%emt 0:03:30]} 15. Qf1 {[%emt 0:05:57]} Ne4+ {[%emt 0:04:30]} 16. Kh1 {[%emt 0:00:41]} Nxc3 {[%emt 0:00:00]} 17. bxc3 {[%emt 0:03:41]} Qxb5 {[%emt 0:02:00]} 18. dxc6 {[%emt 0:00:32]} Bxc6 {[%emt 0:03:30]} 19. Ne5 {[%emt 0:01:31]} Rae8 {[%emt 0:02:30]} 20. c4 {[%emt 0:00:28]} Qb6 {[%emt 0:05:30]} 21. Bf4 {[%emt 0:00:45]} f6 {[%emt 0:02:30]} 22. Rb1 {[%emt 0:00:34]} fxe5 {[%emt 0:02:00]} 23. Rxb6 {[%emt 0:00:15]} axb6 {[%emt 0:00:36]} 24. h3 {[%emt 0:02:13]} Rxf4 {[%emt 0:00:36]} 25. Qe1 {[%emt 0:00:57]} Ref8 {[%emt 0:00:22]} 26. Kh2 {[%emt 0:00:32]} e4 {[%emt 0:01:05]} 27. Qg3 {[%emt 0:00:30]} Bd6 {[%emt 0:01:21]} 0-1

[Event "25th Troya Open 2017"]
[Site "Canakkale"]
[Date "2017.08.11"]
[Round "8.12"]
[White "Kara, Gulce Nehir"]
[Black "Istekli, Erdem"]
[Result "1/2-1/2"]
[ECO "B38"]
[WhiteElo "1659"]
[BlackElo "1696"]
[Annotator "NA RC"]
[PlyCount "56"]
[EventCountry "TUR"]
[SourceTitle "playchess.com"]
[Source "ChessBase"]
[SourceQuality "1"]
[TimeControl "5400+30"]

1. e4 {[%emt 0:00:30]} c5 {[%emt 0:01:00]} 2. Nf3 {[%emt 0:00:30]} Nc6 {[%emt 0:00:30]} 3. d4 {[%emt 0:00:30]} cxd4 {[%emt 0:00:30]} 4. Nxd4 {[%emt 0:00:30]} g6 {[%emt 0:00:30]} 5. c4 {[%emt 0:00:30]} Bg7 {[%emt 0:00:30]} 6. Be3 {[%emt 0:00:30]} d6 {[%emt 0:00:30]} 7. Nc3 {[%emt 0:00:00]} Nf6 {[%emt 0:00:30]} 8. Be2 {[%emt 0:00:00]} O-O {[%emt 0:01:30]} 9. O-O {[%emt 0:00:00]} Bd7 {[%emt 0:07:30]} 10. Qd2 {[%emt 0:00:00]} Nxd4 {[%emt 0:00:30]} 11. Bxd4 {[%emt 0:00:30]} Bc6 {[%emt 0:00:00]} 12. f3 {[%emt 0:00:00]} a5 {[%emt 0:02:00]} 13. b3 {[%emt 0:04:00]} Nd7 {[%emt 0:00:30]} 14. Be3 {[%emt 0:03:30]} Nc5 {[%emt 0:01:30]} 15. Rab1 {[%emt 0:02:30]} Qb6 {[%emt 0:14:30]} 16. Rfc1 {[%emt 0:04:30]} Rfc8 {[%emt 0:02:30]} 17. Kh1 {[%emt 0:05:30]} Qd8 {[%emt 0:11:30]} 18. Nd5 {[%emt 0:06:30]} Bxd5 {[%emt 0:07:30]} 19. exd5 {[%emt 0:00:30]} h5 {[%emt 0:02:30]} 20. Re1 {[%emt 0:05:30]} Qf8 {[%emt 0:12:30]} 21. Bf1 {[%emt 0:04:30]} Rc7 {[%emt 0:02:30]} 22. Bf2 {[%emt 0:03:30]} Bf6 {[%emt 0:02:30]} 23. Bd4 {[%emt 0:04:30]} Qg7 {[%emt 0:02:30]} 24. Bxf6 {[%emt 0:05:30]} Qxf6 {[%emt 0:00:30]} 25. Re3 {[%emt 0:00:30]} Kf8 {[%emt 0:08:59]} 26. Rbe1 {[%emt 0:03:30]} h4 {[%emt 0:03:48]} 27. R3e2 {[%emt 0:03:30]} Kg7 {[%emt 0:01:57]} 28. Re3 {[%emt 0:04:30]} b6 {[%emt 0:01:53]} 1/2-1/2